bitfinex-derivatives/quotes_BTCF0:USTF0_20250630
["timestamp","ask_amount","ask_price","bid_price","bid_amount"]
[1751305416744,0.7717972,107850.0,107840.0,0.67332914]
[1751305416944,0.1853972,107850.0,107840.0,0.67332914]
[1751305417149,0.07637832,107870.0,107840.0,1.68381508]
[1751305417343,0.07637832,107870.0,107860.0,0.99132031]
[1751305417344,0.05795733,107870.0,107860.0,0.99132031]
[1751305417550,0.1876927,107870.0,107860.0,0.98558777]
[1751305417747,0.00233,107870.0,107860.0,1.36302031]
[1751305417947,0.00233,107870.0,107860.0,1.04728777]
[1751305418148,0.07637832,107870.0,107860.0,1.04728777]
[1751305418346,0.33385832,107870.0,107860.0,1.36302031]
[1751305418546,0.35828046,107870.0,107860.0,1.36402031]
[1751305418950,0.10080046,107870.0,107860.0,1.36402031]
[1751305419151,0.35824046,107870.0,107860.0,1.36402031]
[1751305419556,0.35824046,107870.0,107860.0,1.04828777]
[1751305419847,0.28419214,107870.0,107860.0,0.75828777]
[1751305420256,0.02675214,107870.0,107860.0,0.87828777]
[1751305420453,0.02675214,107870.0,107860.0,1.10828777]
[1751305420649,0.02675214,107870.0,107860.0,1.06830673]
[1751305421450,0.29155214,107870.0,107860.0,1.06830673]
[1751305425053,0.29155214,107870.0,107860.0,1.07130673]
[1751305427057,0.29155214,107870.0,107860.0,1.08579707]
[1751305428261,0.26713,107870.0,107860.0,1.08579707]
[1751305428660,0.26713,107870.0,107860.0,1.38703927]
[1751305429156,0.26713,107870.0,107860.0,1.07130673]
[1751305429861,0.26713,107870.0,107860.0,1.38703927]
[1751305433466,0.26713,107870.0,107860.0,1.07130673]
[1751305433863,0.26713,107870.0,107860.0,1.38703927]
[1751305434362,0.32713,107870.0,107860.0,1.38703927]
[1751305435365,0.26713,107870.0,107860.0,1.38703927]
[1751305436063,0.26713,107870.0,107860.0,1.40152957]
[1751305436461,0.26713,107870.0,107860.0,1.08579703]
[1751305438265,0.26713,107870.0,107860.0,1.40152957]
[1751305438664,0.26709,107870.0,107860.0,1.40152957]
[1751305439164,0.00233,107870.0,107860.0,1.40152957]
[1751305439364,0.26709,107870.0,107860.0,1.40152957]
[1751305440065,0.26709,107870.0,107860.0,1.08579703]
[1751305440459,0.26709,107870.0,107860.0,1.14653741]
[1751305441267,0.26709,107870.0,107860.0,1.15575915]
[1751305441765,0.50345488,107870.0,107860.0,1.39212403]
[1751305442672,0.23869488,107870.0,107860.0,1.39212403]
[1751305442865,0.50345488,107870.0,107860.0,1.39212403]
[1751305443072,0.26709,107870.0,107860.0,1.39212403]
[1751305443368,0.50345488,107870.0,107860.0,1.44748361]
[1751305444565,0.23869488,107870.0,107860.0,1.44748361]
[1751305444866,0.50345488,107870.0,107860.0,1.44748361]
[1751305445159,0.50345488,107870.0,107860.0,1.21111873]
[1751305445368,0.49849488,107870.0,107860.0,1.44748361]
[1751305446259,0.49849488,107870.0,107860.0,1.41061805]
[1751305446663,0.49849488,107870.0,107860.0,1.44752671]
[1751305446970,0.68385748,107870.0,107860.0,1.41061805]
[1751305447368,0.49849488,107870.0,107860.0,1.41061805]
[1751305447771,0.26213,107870.0,107860.0,1.17425317]
[1751305447971,0.49849488,107870.0,107860.0,1.41061805]
[1751305448369,0.49849488,107870.0,107860.0,1.17425317]
[1751305448569,0.49849488,107870.0,107860.0,1.41061805]
[1751305449169,0.49849488,107870.0,107860.0,1.17425317]
[1751305449368,0.49849488,107870.0,107860.0,1.41061805]
[1751305450072,0.49849488,107870.0,107860.0,1.17425317]
[1751305450373,0.49849488,107870.0,107860.0,1.41061805]
[1751305451572,0.26213,107870.0,107860.0,1.41061805]
[1751305451871,0.49849488,107870.0,107860.0,1.64698293]
[1751305452072,0.49849488,107870.0,107860.0,1.41061805]
[1751305452670,0.26213,107870.0,107860.0,1.41061805]
[1751305452871,0.49849488,107870.0,107860.0,1.41061805]
[1751305453173,0.49849488,107870.0,107860.0,1.17425317]
[1751305453373,0.49849488,107870.0,107860.0,1.41061805]
[1751305454175,0.68385748,107870.0,107860.0,1.41061805]
[1751305454571,0.49849488,107870.0,107860.0,1.41061805]
[1751305454772,0.68385748,107870.0,107860.0,1.41061805]
[1751305454973,0.71385748,107870.0,107860.0,1.41061805]
[1751305455470,1.03385748,107870.0,107860.0,1.41061805]
[1751305455672,0.58849488,107870.0,107860.0,1.41061805]
[1751305455872,0.77385748,107870.0,107860.0,1.41061805]
[1751305456279,0.58849488,107870.0,107860.0,1.41061805]
[1751305456472,0.77385748,107870.0,107860.0,1.17425317]
[1751305456978,0.77385748,107870.0,107860.0,1.41061805]
[1751305457476,0.77385748,107870.0,107860.0,1.39612775]
[1751305458179,0.77385748,107870.0,107860.0,1.33442775]
[1751305458377,0.83605748,107870.0,107860.0,1.33442775]
[1751305459487,0.83605748,107870.0,107860.0,1.09806287]
[1751305459779,0.83605748,107870.0,107860.0,1.33442775]
[1751305462781,0.5996926,107870.0,107860.0,1.33442775]
[1751305462982,0.83605748,107870.0,107860.0,1.33442775]
[1751305463180,0.83605748,107870.0,107860.0,1.36542775]
[1751305465186,0.83605748,107870.0,107860.0,1.39862775]
[1751305465781,0.78605748,107870.0,107860.0,1.39862775]
[1751305466685,0.52625748,107870.0,107860.0,1.39862775]
[1751305466983,1.39841748,107870.0,107860.0,1.39862775]
[1751305468388,1.39841748,107870.0,107860.0,1.39472101]
[1751305468984,1.39841748,107870.0,107860.0,1.15835613]
[1751305469180,1.39841748,107870.0,107860.0,1.09415613]
[1751305469480,1.49841748,107870.0,107860.0,0.73335613]
[1751305469687,1.72841748,107870.0,107860.0,0.73335613]
[1751305470581,1.74986775,107870.0,107860.0,0.66329316]
[1751305471374,1.74986775,107870.0,107860.0,0.01848643]
[1751305471574,0.23177,107840.0,107830.0,0.278131]
[1751305471778,1.12789515,107840.0,107830.0,0.61621246]
[1751305471979,1.07694447,107840.0,107830.0,0.97701246]
[1751305472179,1.07694447,107840.0,107830.0,1.03931246]
[1751305472484,0.46666447,107840.0,107830.0,1.58567734]
[1751305472676,0.46666447,107840.0,107830.0,1.38181246]
[1751305472872,0.46666447,107840.0,107830.0,1.39088245]
[1751305473282,0.46666447,107840.0,107830.0,1.69096245]
[1751305473481,0.46666447,107840.0,107830.0,1.81096245]
[1751305473786,0.46666447,107840.0,107830.0,2.04096245]
[1751305474390,0.4452142,107840.0,107830.0,2.05096245]
[1751305474988,0.4452142,107840.0,107830.0,1.80552758]
[1751305475188,0.1854142,107840.0,107830.0,2.04189246]
[1751305475387,0.1854142,107840.0,107830.0,1.82189246]
[1751305475589,0.1854142,107840.0,107830.0,1.69189246]
[1751305475791,0.1854142,107840.0,107830.0,1.78189246]
[1751305476083,0.1854142,107840.0,107830.0,1.76389246]
[1751305476387,0.42177908,107840.0,107830.0,1.76389246]
[1751305477291,0.42177908,107840.0,107830.0,1.52752758]
[1751305477491,0.42177908,107840.0,107830.0,1.76389246]
[1751305478190,0.42177908,107840.0,107830.0,1.52752758]
[1751305478386,0.42177908,107840.0,107830.0,1.76389246]
[1751305479086,0.42177908,107840.0,107830.0,1.70853288]
[1751305479589,0.42177908,107840.0,107830.0,1.472168]
[1751305479888,0.42177908,107840.0,107830.0,1.70853288]
[1751305480992,0.42177908,107840.0,107830.0,1.93853288]
[1751305481289,0.44334148,107840.0,107830.0,1.11845288]
[1751305481483,0.44334148,107840.0,107830.0,1.69291288]
[1751305481684,0.47454148,107840.0,107830.0,1.69291288]
[1751305481985,0.47454148,107840.0,107830.0,1.08595288]
[1751305482189,0.51611016,107840.0,107830.0,1.08595288]
[1751305482488,0.50694148,107840.0,107830.0,1.08595288]
[1751305483492,0.50694148,107840.0,107830.0,0.849588]
[1751305483691,0.50694148,107840.0,107830.0,1.08595288]
[1751305485395,0.50694148,107840.0,107830.0,0.98595288]
[1751305485594,0.50694148,107840.0,107830.0,1.05595288]
[1751305485794,0.50694148,107840.0,107830.0,1.36595288]
[1751305485996,0.50694148,107840.0,107830.0,1.04595288]
[1751305486899,0.50694148,107840.0,107830.0,1.29595288]
[1751305487095,0.50694148,107840.0,107830.0,1.32785288]
[1751305487492,0.50694148,107840.0,107830.0,1.08785288]
[1751305488902,0.50694148,107840.0,107830.0,0.851488]
[1751305489099,0.50694148,107840.0,107830.0,1.08785288]
[1751305489303,0.50694148,107840.0,107830.0,0.851488]
[1751305489600,0.50694148,107840.0,107830.0,1.08785288]
[1751305491205,0.50694148,107840.0,107830.0,0.851488]
[1751305491499,0.50694148,107840.0,107830.0,1.08785288]
[1751305492001,0.2705766,107840.0,107830.0,1.08785288]
[1751305492298,0.50694148,107840.0,107830.0,1.08785288]
[1751305492889,0.50694148,107840.0,107830.0,1.05595288]
[1751305494000,0.50694148,107840.0,107830.0,0.819588]
[1751305494301,0.50694148,107840.0,107830.0,1.05595288]
[1751305494501,0.50694148,107840.0,107830.0,0.6645744]
[1751305494703,1.01370636,107840.0,107830.0,0.5945744]
[1751305495302,1.01370636,107840.0,107830.0,0.83093928]
[1751305496002,0.77734148,107840.0,107830.0,0.83093928]
[1751305496200,1.01370636,107840.0,107830.0,0.5945744]
[1751305496699,0.87370636,107840.0,107830.0,0.5945744]
[1751305498306,0.87370636,107840.0,107830.0,0.83093928]
[1751305498900,0.63734148,107840.0,107830.0,0.83093928]
[1751305501403,0.63734148,107840.0,107830.0,0.5945744]
[1751305501613,0.63734148,107840.0,107830.0,0.83093928]
[1751305502207,0.4009766,107840.0,107830.0,0.83093928]
[1751305502504,1.39234148,107840.0,107830.0,0.5945744]
[1751305502707,1.39234148,107840.0,107830.0,0.83093928]
[1751305503107,1.1559766,107840.0,107830.0,0.83093928]
[1751305503308,1.39234148,107840.0,107830.0,0.83093928]
[1751305503612,1.49234148,107840.0,107830.0,0.5945744]
[1751305503909,1.49234148,107840.0,107830.0,0.83093928]
[1751305504403,1.2559766,107840.0,107830.0,0.83093928]
[1751305504606,1.49234148,107840.0,107830.0,0.83093928]
[1751305506910,1.49234148,107840.0,107830.0,0.86233928]
[1751305509011,1.2559766,107840.0,107830.0,0.86233928]
[1751305509208,1.49234148,107840.0,107830.0,0.86233928]
[1751305509811,1.2559766,107840.0,107830.0,0.86233928]
[1751305510008,1.49234148,107840.0,107830.0,0.86233928]
[1751305511008,1.49234148,107840.0,107830.0,0.87683398]
[1751305511407,1.54799137,107840.0,107830.0,0.87683398]
[1751305513414,1.41759137,107840.0,107830.0,0.87683398]
[1751305513914,0.56259137,107840.0,107830.0,0.87683398]
[1751305514413,1.41019137,107840.0,107830.0,0.87683398]
[1751305514613,0.56259137,107840.0,107830.0,0.87683398]
[1751305514814,1.41023137,107840.0,107830.0,0.87683398]
[1751305515010,0.56259137,107840.0,107830.0,0.87683398]
[1751305515212,0.56259137,107840.0,107830.0,0.6404691]
[1751305515409,1.41007137,107840.0,107830.0,0.87683398]
[1751305516111,1.17370649,107840.0,107830.0,0.87683398]
[1751305516316,1.41007137,107840.0,107830.0,0.87683398]
[1751305517816,1.17370649,107840.0,107830.0,0.87683398]
[1751305518015,1.37767137,107840.0,107830.0,0.6716691]
[1751305518215,1.37767137,107840.0,107830.0,0.90803398]
[1751305519223,1.14130649,107840.0,107830.0,0.90803398]
[1751305519420,1.37767137,107840.0,107830.0,0.90803398]
[1751305520028,0.53019137,107840.0,107830.0,0.90803398]
[1751305520224,1.37671137,107840.0,107830.0,0.87683398]
[1751305520426,1.40851137,107840.0,107830.0,0.87683398]
[1751305520625,1.37671137,107840.0,107830.0,0.87683398]
[1751305520824,1.37671137,107840.0,107830.0,0.90903398]
[1751305521327,1.32106148,107840.0,107830.0,0.90903398]
[1751305522130,0.2069766,107840.0,107830.0,0.90903398]
[1751305522327,1.0534166,107840.0,107830.0,1.07903398]
[1751305522830,1.0534166,107840.0,107830.0,0.8426691]
[1751305523030,1.0534166,107840.0,107830.0,1.07903398]
[1751305523425,1.0534166,107840.0,107830.0,0.8426691]
[1751305523626,1.0534166,107840.0,107830.0,1.07903398]
[1751305523930,1.28978148,107840.0,107830.0,1.07903398]
[1751305524728,1.0534166,107840.0,107830.0,1.07903398]
[1751305525030,1.28978148,107840.0,107830.0,1.07903398]
[1751305525625,1.0534166,107840.0,107830.0,1.07903398]
[1751305525821,1.28978148,107840.0,107830.0,1.07903398]
[1751305526131,1.28978148,107840.0,107830.0,0.8426691]
[1751305526330,1.28978148,107840.0,107830.0,1.07903398]
[1751305535336,1.28978148,107840.0,107830.0,0.8426691]
[1751305535634,1.28978148,107840.0,107830.0,1.07903398]
[1751305537439,1.52614636,107840.0,107830.0,0.8426691]
[1751305537635,1.32168148,107840.0,107830.0,1.07903398]
[1751305537836,1.0853166,107840.0,107830.0,1.07903398]
[1751305538132,1.32168148,107840.0,107830.0,1.07903398]
[1751305539336,1.32168148,107840.0,107830.0,1.04683398]
[1751305541539,0.2388766,107840.0,107830.0,1.04683398]
[1751305541739,1.31328148,107840.0,107830.0,1.04683398]
[1751305542541,1.0769166,107840.0,107830.0,1.04683398]
[1751305542740,1.31328148,107840.0,107830.0,1.04683398]
[1751305542942,1.31328148,107840.0,107830.0,1.07893398]
[1751305543641,1.31328148,107840.0,107830.0,1.03893398]
[1751305544542,1.0769166,107840.0,107830.0,1.03893398]
[1751305544743,1.31328148,107840.0,107830.0,1.03893396]
[1751305544944,1.31328148,107840.0,107830.0,1.00683396]
[1751305545146,1.37698148,107840.0,107830.0,1.00683396]
[1751305546751,1.1406166,107840.0,107830.0,1.00683396]
[1751305546938,1.37698148,107840.0,107830.0,1.00683396]
[1751305547545,1.1406166,107840.0,107830.0,1.00683396]
[1751305547844,1.37698148,107840.0,107830.0,1.00683396]
[1751305549147,1.1406166,107840.0,107830.0,1.00683396]
[1751305549334,1.37698148,107840.0,107830.0,1.00683396]
[1751305550747,1.37698148,107840.0,107830.0,0.99233928]
[1751305551146,1.37698148,107840.0,107830.0,0.7559744]
[1751305551349,1.43263137,107840.0,107830.0,0.99233928]
[1751305552346,1.43263137,107840.0,107830.0,1.22233928]
[1751305552548,1.43263137,107840.0,107830.0,0.93233928]
[1751305553448,1.43263137,107840.0,107830.0,0.92233928]
[1751305554244,1.43263137,107840.0,107830.0,0.6859744]
[1751305554447,1.43263137,107840.0,107830.0,0.92233928]
[1751305554647,1.43263137,107840.0,107830.0,0.6859744]
[1751305554837,1.43263137,107840.0,107830.0,0.92233928]
[1751305556149,1.19626649,107840.0,107830.0,0.93683396]
[1751305556446,1.43263137,107840.0,107830.0,0.93683396]
[1751305557851,1.43263137,107840.0,107830.0,0.90543396]
[1751305559148,1.43263137,107840.0,107830.0,0.93843396]
[1751305559844,1.19626649,107840.0,107830.0,0.93843396]
[1751305560040,1.43263137,107840.0,107830.0,0.93843396]
[1751305561453,1.37698148,107840.0,107830.0,0.93843396]
[1751305562955,1.37698148,107840.0,107830.0,0.57763396]
[1751305563154,1.37698148,107840.0,107830.0,0.20192598]
[1751305563155,2.34414636,107840.0,107830.0,0.20192598]
[1751305563655,1.8714166,107840.0,107830.0,0.1874313]
[1751305563848,2.34414636,107840.0,107830.0,0.1874313]
[1751305564044,2.39979625,107840.0,107830.0,0.1874313]
[1751305564255,2.34414636,107840.0,107830.0,0.1874313]
[1751305564661,2.34414636,107840.0,107830.0,0.42379618]
[1751305564850,2.39979625,107840.0,107830.0,0.42379618]
[1751305565050,2.39979625,107840.0,107830.0,0.1874313]
[1751305566159,2.34414636,107840.0,107830.0,0.1874313]
[1751305569058,2.24414636,107840.0,107830.0,0.1874313]
[1751305569260,2.34414636,107840.0,107830.0,0.1874313]
[1751305571359,2.39979625,107840.0,107830.0,0.1874313]
[1751305571657,1.93899625,107840.0,107830.0,0.1874313]
[1751305571961,1.87586626,107840.0,107830.0,0.1874313]
[1751305572154,1.87586626,107840.0,107830.0,0.42379618]
[1751305572656,1.87586626,107840.0,107830.0,0.1874313]
[1751305573866,1.97586626,107840.0,107830.0,0.1874313]
[1751305575456,2.33666626,107840.0,107830.0,0.1874313]
[1751305575662,2.39231615,107840.0,107830.0,0.1874313]
[1751305576359,2.39231615,107840.0,107820.0,0.2781577]
[1751305576360,0.1854313,107830.0,107820.0,0.2781577]
[1751305576557,1.48512346,107830.0,107820.0,0.1854358]
[1751305577265,1.0123937,107830.0,107820.0,0.1854358]
[1751305577455,1.24875858,107830.0,107820.0,0.1854358]
[1751305577855,1.24875858,107830.0,107820.0,0.1904358]
[1751305578366,1.0123937,107830.0,107820.0,0.1904358]
[1751305578567,1.24875858,107830.0,107820.0,0.1904358]
[1751305579863,1.24875858,107830.0,107820.0,0.1854358]
[1751305585568,1.0123937,107830.0,107820.0,0.1854358]
[1751305585769,1.24875858,107830.0,107820.0,0.1854358]
[1751305590977,1.0123937,107830.0,107820.0,0.1854358]
[1751305591275,1.24875858,107830.0,107820.0,0.1854358]
[1751305593073,1.21775858,107830.0,107820.0,0.1854358]
[1751305593276,0.86775858,107830.0,107820.0,0.2512358]
[1751305593470,1.27283858,107830.0,107820.0,1.17840068]
[1751305593672,1.27283858,107830.0,107820.0,1.21070068]
[1751305594674,0.44335858,107830.0,107820.0,1.21070068]
[1751305594874,1.27287858,107830.0,107820.0,1.21070068]
[1751305595072,0.44335858,107830.0,107820.0,1.21070068]
[1751305595469,1.27283858,107830.0,107820.0,1.21070068]
[1751305596077,1.27283858,107830.0,107820.0,1.2251965]
[1751305596270,1.27283858,107830.0,107820.0,1.21070068]
[1751305597076,1.27283858,107830.0,107820.0,1.2251965]
[1751305598978,1.27283858,107830.0,107820.0,0.8951965]
[1751305599475,1.27283858,107830.0,107820.0,1.2551965]
[1751305600174,0.0215624,107830.0,107820.0,1.2551965]
[1751305600380,0.32170012,107840.0,107830.0,0.1854313]
[1751305600571,1.27214921,107840.0,107830.0,1.23839618]
[1751305601370,1.3277991,107840.0,107830.0,1.20839618]
[1751305602284,1.3277991,107840.0,107830.0,1.03839618]
[1751305603774,1.3287991,107840.0,107830.0,1.03839618]
[1751305604578,1.3277991,107840.0,107830.0,1.03939618]
[1751305604778,1.09143422,107840.0,107830.0,1.03939618]
[1751305604980,1.3277991,107840.0,107830.0,1.03939618]
[1751305609081,1.3277991,107840.0,107830.0,0.87939618]
[1751305611385,1.27214921,107840.0,107830.0,0.87939618]
[1751305613683,1.27214921,107840.0,107830.0,0.6430313]
[1751305613889,1.27214921,107840.0,107830.0,0.87939618]
[1751305614486,1.50851409,107840.0,107830.0,0.87939618]
[1751305614691,1.53851409,107840.0,107830.0,0.87939618]
[1751305615287,1.53851409,107840.0,107830.0,0.6430313]
[1751305615492,1.88851409,107840.0,107830.0,0.6430313]
[1751305616288,2.34931409,107840.0,107830.0,0.0968]
[1751305616597,0.1854485,107820.0,107810.0,0.2781805]
[1751305616788,1.67382849,107820.0,107810.0,0.39267702]
[1751305617092,1.76802849,107820.0,107810.0,0.39267702]
[1751305617696,2.12882849,107820.0,107810.0,0.20396222]
[1751305617893,3.16675337,107820.0,107810.0,0.004]
[1751305618794,0.1854657,107810.0,107800.0,0.20194373]
[1751305618990,1.70984569,107810.0,107800.0,0.21644306]
[1751305619186,1.80984569,107810.0,107800.0,0.03096116]
[1751305619599,1.80984569,107810.0,107800.0,0.01542693]
[1751305619801,1.65275959,107810.0,107800.0,0.01542693]
[1751305619999,1.65275959,107810.0,107800.0,0.0009276]
[1751305620296,1.65275959,107810.0,107800.0,0.0039276]
[1751305620486,1.65275959,107810.0,107800.0,0.1894105]
[1751305620894,1.65275959,107810.0,107800.0,0.0039276]
[1751305621793,1.65275959,107810.0,107800.0,0.1894105]
[1751305622799,1.65275959,107810.0,107800.0,0.0039276]
[1751305623003,1.65275959,107810.0,107800.0,0.1894105]
[1751305624792,1.65275959,107810.0,107800.0,0.0039276]
[1751305625401,0.1855001,107790.0,107780.0,0.28724148]
[1751305625587,1.76598376,107790.0,107780.0,0.22985985]
[1751305625792,1.93008376,107790.0,107780.0,0.25537715]
[1751305626292,1.93919084,107790.0,107780.0,0.25537715]
[1751305626900,1.93919084,107790.0,107780.0,0.26137715]
[1751305627102,2.0137675,107790.0,107780.0,0.26137715]
[1751305627505,2.00466042,107790.0,107780.0,0.26137715]
[1751305628000,1.32062042,107790.0,107780.0,0.26137715]
[1751305628200,2.14918042,107790.0,107780.0,0.26137715]
[1751305628397,2.14918042,107790.0,107780.0,0.20601757]
[1751305628598,0.95982042,107790.0,107780.0,0.20601757]
[1751305628902,1.78834042,107790.0,107780.0,0.32237715]
[1751305629098,2.15846701,107790.0,107780.0,0.32237715]
[1751305629300,2.15846701,107790.0,107780.0,0.26701757]
[1751305630104,2.25846701,107790.0,107780.0,0.26701757]
[1751305631310,2.25834701,107790.0,107780.0,0.20601757]
[1751305631494,0.32,107790.0,107780.0,0.52166123]
[1751305631701,1.0138601,107790.0,107780.0,0.69065007]
[1751305631900,1.32950376,107790.0,107780.0,0.69065007]
[1751305632209,1.79030376,107790.0,107780.0,0.64427157]
[1751305632406,2.19280376,107790.0,107780.0,0.56559337]
[1751305632709,1.89380376,107790.0,107780.0,0.56559337]
[1751305633004,0.96544376,107790.0,107780.0,0.31559337]
[1751305633207,2.25464376,107790.0,107780.0,0.31559337]
[1751305633405,1.32624376,107790.0,107780.0,0.31559337]
[1751305633708,1.74437976,107790.0,107780.0,0.31559337]
[1751305633910,1.74437976,107790.0,107780.0,0.3010931]
[1751305634910,1.71187976,107790.0,107780.0,0.3010931]
[1751305635508,1.3962361,107790.0,107780.0,0.3010931]
[1751305635709,1.71187976,107790.0,107780.0,0.3010931]
[1751305637615,2.03187976,107790.0,107780.0,0.3010931]
[1751305637816,2.09247976,107790.0,107780.0,0.2378931]
[1751305638312,2.09247976,107790.0,107780.0,0.1915173]
[1751305638513,2.19247976,107790.0,107780.0,0.006]
[1751305638814,0.1855173,107780.0,107770.0,0.42009496]
[1751305639014,1.22466096,107780.0,107770.0,0.38779496]
[1751305639310,1.22466096,107780.0,107770.0,0.34141206]
[1751305639505,1.25606096,107780.0,107770.0,0.24866246]
[1751305639911,1.28666096,107780.0,107770.0,0.24866246]
[1751305640108,1.28666096,107780.0,107770.0,0.25066246]
[1751305640309,1.40817563,107780.0,107770.0,0.00292786]
[1751305641316,2.21013563,107780.0,107770.0,0.00292786]
[1751305643216,1.89449197,107780.0,107770.0,0.00292786]
[1751305643420,2.21013563,107780.0,107770.0,0.00292786]
[1751305648016,2.21013563,107780.0,107760.0,0.0644]
[1751305648017,0.1855518,107760.0,107750.0,0.3556349]
[1751305648218,2.07047546,107760.0,107750.0,0.6037693]
[1751305648420,1.69047546,107760.0,107750.0,0.6037693]
[1751305648618,2.07047546,107760.0,107750.0,0.6037693]
[1751305648815,2.09196356,107760.0,107750.0,0.6037693]
[1751305649321,2.09196356,107760.0,107750.0,0.6097693]
[1751305649915,2.09196356,107760.0,107750.0,0.5633777]
[1751305650118,2.09196356,107760.0,107750.0,0.54887152]
[1751305651223,2.09196356,107760.0,107750.0,0.37887152]
[1751305651722,2.04135232,107760.0,107750.0,0.37887152]
[1751305652726,1.68055232,107760.0,107750.0,0.37887152]
[1751305652915,2.04135232,107760.0,107750.0,0.37887152]
[1751305654726,2.09135232,107760.0,107750.0,0.37887152]
[1751305657229,2.08196356,107760.0,107750.0,0.37887152]
[1751305657425,1.4563199,107760.0,107750.0,0.37887152]
[1751305657625,2.07196356,107760.0,107750.0,0.37887152]
[1751305659227,2.07196356,107760.0,107750.0,0.39337847]
[1751305659628,2.08102954,107760.0,107750.0,0.39337847]
[1751305661927,2.08102954,107760.0,107750.0,0.39037847]
[1751305662626,2.18102954,107760.0,107750.0,0.29759637]
[1751305662831,0.185569,107750.0,107740.0,0.00092812]
[1751305663134,1.22350076,107750.0,107740.0,0.01543596]
[1751305663428,1.38530076,107750.0,107740.0,0.02938033]
[1751305664224,1.38530076,107750.0,107740.0,0.03438033]
[1751305665729,1.38530076,107750.0,107740.0,0.03238033]
[1751305671628,1.38530076,107750.0,107740.0,0.02938033]
[1751305675836,1.38530076,107750.0,107740.0,0.01543596]
[1751305676041,1.38530076,107750.0,107740.0,0.0294948]
[1751305676242,1.38530076,107750.0,107740.0,0.01498696]
[1751305676441,1.36381266,107750.0,107740.0,0.01498696]
[1751305676936,1.36381266,107750.0,107740.0,0.01500062]
[1751305681147,1.36581266,107750.0,107740.0,0.01500062]
[1751305682148,1.36581266,107750.0,107740.0,0.00092812]
[1751305682340,1.42141332,107750.0,107740.0,0.00092812]
[1751305682844,0.1856034,107730.0,107720.0,0.2158072]
[1751305683147,2.13024706,107730.0,107720.0,0.09145182]
[1751305683448,2.55164706,107730.0,107720.0,0.02875182]
[1751305683644,2.55164706,107730.0,107720.0,0.01424101]
[1751305683948,2.55164706,107730.0,107720.0,0.01624101]
[1751305685551,2.62535258,107730.0,107720.0,0.01624101]
[1751305685749,2.68095896,107730.0,107720.0,0.01624101]
[1751305686851,2.65035896,107730.0,107720.0,0.01624101]
[1751305687051,2.68105896,107730.0,107720.0,0.01624101]
[1751305687351,2.62545258,107730.0,107720.0,0.01624101]
[1751305688847,2.68105896,107730.0,107720.0,0.002]
[1751305689253,0.1856205,107720.0,107710.0,0.06312838]
[1751305689453,0.1856205,107720.0,107710.0,0.07752065]
[1751305689454,1.35356416,107720.0,107710.0,0.07752065]
[1751305690251,1.69940782,107720.0,107710.0,0.07752065]
[1751305690446,1.69940782,107720.0,107710.0,0.01532065]
[1751305690648,1.73260782,107720.0,107710.0,0.01932065]
[1751305691148,1.74168608,107720.0,107710.0,0.00492838]
[1751305691455,1.79729246,107720.0,107710.0,0.00492838]
[1751305692148,0.1856377,107710.0,107700.0,0.0635]
[1751305692347,1.93712136,107710.0,107700.0,0.07801325]
[1751305692946,1.93712136,107710.0,107700.0,0.01451325]
[1751305694153,1.93712136,107710.0,107690.0,0.2795592]
[1751305694154,0.185655,107700.0,107690.0,0.0939]
[1751305694454,1.55629866,107700.0,107690.0,0.07791449]
[1751305694657,1.61789866,107700.0,107690.0,0.07791449]
[1751305694848,2.42041866,107700.0,107690.0,0.07791449]
[1751305695049,2.45081866,107700.0,107690.0,0.07791449]
[1751305695249,2.45081866,107700.0,107690.0,0.0634]
[1751305695648,0.1856722,107690.0,107680.0,0.03142863]
[1751305695851,1.79575586,107690.0,107680.0,0.11004343]
[1751305696252,1.79575586,107690.0,107680.0,0.29573283]
[1751305696553,1.79575586,107690.0,107680.0,0.11004343]
[1751305697057,1.89575586,107690.0,107680.0,0.11004343]
[1751305697358,1.89575586,107690.0,107680.0,0.11304343]
[1751305698056,1.89575586,107690.0,107680.0,0.08254343]
[1751305698958,1.92605586,107690.0,107680.0,0.08254343]
[1751305700458,1.92605586,107690.0,107680.0,0.06802863]
[1751305701161,1.92605586,107690.0,107680.0,0.25371803]
[1751305701463,1.92605586,107690.0,107680.0,0.06802863]
[1751305701647,1.92605586,107690.0,107680.0,0.06602863]
[1751305701852,2.13991586,107690.0,107680.0,0.06602863]
[1751305703554,2.13991586,107690.0,107680.0,0.25171803]
[1751305703754,2.13991586,107690.0,107680.0,0.06602863]
[1751305705456,2.13991586,107690.0,107680.0,0.25171803]
[1751305705962,2.13991586,107690.0,107680.0,0.06602863]
[1751305707763,2.13991586,107690.0,107680.0,0.25171803]
[1751305708963,2.13991586,107690.0,107680.0,0.06602863]
[1751305709163,2.13991586,107690.0,107680.0,0.08054551]
[1751305709558,2.13991586,107690.0,107680.0,0.26623491]
[1751305709763,2.14091586,107690.0,107680.0,0.07954551]
[1751305709959,1.55739586,107690.0,107680.0,0.26523491]
[1751305710261,0.5474722,107690.0,107680.0,0.26523506]
[1751305710465,2.01079586,107690.0,107680.0,0.26523506]
[1751305711974,2.07079586,107690.0,107680.0,0.26523506]
[1751305712365,1.3751522,107690.0,107680.0,0.26523506]
[1751305712565,2.03079586,107690.0,107680.0,0.26523506]
[1751305714370,0.86311586,107690.0,107680.0,0.26523506]
[1751305714570,1.69067586,107690.0,107680.0,0.26523506]
[1751305715873,0.74659586,107690.0,107680.0,0.26523506]
[1751305716071,0.7699122,107690.0,107680.0,1.69740672]
[1751305716375,0.1866722,107690.0,107680.0,1.44740672]
[1751305716571,0.1866722,107690.0,107680.0,1.13176306]
[1751305717278,0.1866722,107690.0,107680.0,1.14627833]
[1751305717671,0.1866722,107690.0,107680.0,1.13176306]
[1751305717871,0.1866722,107690.0,107680.0,1.14627833]
[1751305718177,0.1866722,107690.0,107680.0,1.13176306]
[1751305718380,0.001,107690.0,107680.0,1.14627833]
[1751305718774,0.001,107690.0,107680.0,1.13176306]
[1751305719582,0.1866722,107690.0,107680.0,1.44740672]
[1751305720380,0.001,107690.0,107680.0,1.44740672]
[1751305720681,0.001,107690.0,107680.0,1.4619219]
[1751305721081,0.001,107690.0,107680.0,1.44740672]
[1751305721280,0.001,107690.0,107680.0,1.4619219]
[1751305721483,0.429935,107700.0,107690.0,0.1856722]
[1751305721781,0.429935,107700.0,107690.0,0.81568923]
[1751305722778,0.431935,107700.0,107690.0,0.81568923]
[1751305722978,0.4319349,107700.0,107690.0,0.81568923]
[1751305723277,0.4319349,107700.0,107690.0,0.83020268]
[1751305723475,0.05560638,107710.0,107700.0,0.185655]
[1751305723673,0.24124408,107710.0,107700.0,1.31111123]
[1751305723983,0.05560638,107710.0,107700.0,1.49680723]
[1751305724679,0.85832638,107720.0,107710.0,0.1856377]
[1751305724986,0.8579546,107720.0,107710.0,1.03674893]
[1751305725174,0.8579546,107720.0,107710.0,1.35239247]
[1751305725374,0.8579546,107720.0,107710.0,1.33788136]
[1751305725582,0.05560638,107720.0,107710.0,1.33788136]
[1751305726085,0.05560638,107730.0,107720.0,0.1856205]
[1751305726292,0.05560638,107730.0,107720.0,0.2479205]
[1751305727086,0.24120968,107730.0,107720.0,0.2479205]
[1751305727483,0.24820968,107730.0,107720.0,0.2479205]